bitfinex-derivatives/quotes_BNBF0:USTF0_20250529
["timestamp","ask_amount","ask_price","bid_price","bid_amount"]
[1748562624007,0.97276032,673.84,672.7,0.47089467]
[1748562624209,0.97276032,673.83,672.77,0.47089467]
[1748562624407,0.465,673.87,672.76,0.47089467]
[1748562624708,0.97345894,673.86,672.83,0.47089467]
[1748562624913,0.97345894,673.85,672.84,0.47089467]
[1748562625212,0.97345894,673.84,672.87,0.47089467]
[1748562625412,0.97345894,673.84,671.63,0.96140995]
[1748562625413,0.97345894,673.83,672.86,0.47089467]
[1748562625611,0.97547669,673.82,672.87,0.47089467]
[1748562625808,0.97543314,673.81,672.87,0.47089467]
[1748562626114,0.465,673.87,672.99,0.47089467]
[1748562626115,0.97550571,673.8,672.99,0.47089467]
[1748562626414,0.97550571,673.79,673.0,0.47089467]
[1748562626612,0.97550571,673.78,673.0,0.47089467]
[1748562626816,0.97550571,673.77,673.02,0.47089467]
[1748562627109,0.465,673.87,673.02,0.47089467]
[1748562627307,0.9754855,673.86,673.03,0.47089467]
[1748562627511,0.9754855,673.85,673.0,0.47089467]
[1748562627714,0.97548375,673.84,672.99,0.47089467]
[1748562627909,0.97548375,673.83,673.0,0.47089467]
[1748562628115,0.97509002,673.82,672.98,0.47089467]
[1748562628310,0.465,673.87,672.96,0.47089467]
[1748562628614,0.465,673.87,673.0,0.47089467]
[1748562629410,0.97507738,673.86,672.99,0.47089467]
[1748562629616,0.465,673.87,672.99,0.47089467]
[1748562629817,0.97507738,673.86,672.99,0.47089467]
[1748562630115,0.465,673.87,672.99,0.47089467]
[1748562630415,0.465,673.87,671.95,0.96140995]
[1748562630416,0.465,673.87,673.01,0.47089467]
[1748562630614,0.465,673.87,672.66,0.47089467]
[1748562630615,0.465,673.87,673.0,0.47089467]
[1748562631508,0.465,673.87,672.19,0.5650736]
[1748562631509,0.465,673.87,672.99,0.47089467]
[1748562632314,0.465,673.87,672.47,0.47089467]
[1748562632315,0.465,673.87,672.98,0.47089467]
[1748562633116,0.97556035,673.86,672.98,0.47089467]
[1748562633313,0.465,673.87,672.94,0.47089467]
[1748562633819,0.465,673.87,672.93,0.47089467]
[1748562634117,0.465,673.87,671.88,0.96140995]
[1748562634118,0.465,673.87,672.91,0.47089467]
[1748562634518,0.97556072,673.86,672.91,0.47089467]
[1748562634719,0.97556072,673.85,672.91,0.47089467]
[1748562634915,0.97556072,673.84,672.91,0.47089467]
[1748562635119,0.97556072,673.83,672.91,0.47089467]
[1748562635316,0.97405369,673.82,672.91,0.47089467]
[1748562635518,0.9740537,673.81,672.91,0.47089467]
[1748562635718,0.9740537,673.8,672.9,0.47089467]
[1748562636021,0.9740537,673.79,672.91,0.47089467]
[1748562636218,0.97393943,673.78,672.9,0.47089467]
[1748562636422,0.97393943,673.77,672.9,0.47089467]
[1748562636622,0.465,673.87,672.88,0.47089467]
[1748562636623,0.97393263,673.76,672.88,0.47089467]
[1748562636922,0.97393263,673.75,672.87,0.47089467]
[1748562637120,0.97378823,673.74,672.87,0.47089467]
[1748562637423,0.97363833,673.73,672.87,0.47089467]
[1748562637627,0.97363762,673.72,672.87,0.47089467]
[1748562637820,0.465,673.87,672.87,0.47089467]
[1748562637821,0.97363762,673.71,672.87,0.47089467]
[1748562638019,0.97357424,673.7,672.87,0.47089467]
[1748562638218,0.465,673.87,672.87,0.47089467]
[1748562638517,0.9735456,673.86,672.85,0.47089467]
[1748562638719,0.97354595,673.85,672.85,0.47089467]
[1748562638919,0.465,673.87,672.85,0.47089467]
[1748562639719,0.97354991,673.86,672.85,0.47089467]
[1748562639919,0.465,673.87,672.85,0.47089467]
[1748562640219,0.97355545,673.86,672.83,0.47089467]
[1748562640525,0.97355545,673.85,672.84,0.47089467]
[1748562640723,0.97355545,673.84,672.84,0.47089467]
[1748562640920,0.97355545,673.83,672.84,0.47089467]
[1748562641220,0.465,673.87,672.87,0.47089467]
[1748562641425,0.465,673.87,672.91,0.47089467]
[1748562641724,0.465,673.87,672.89,0.47089467]
[1748562642117,0.97369777,673.86,672.9,0.47089467]
[1748562642319,0.465,673.87,672.9,0.47089467]
[1748562642520,0.465,673.87,672.89,0.47089467]
[1748562642723,0.97368219,673.86,672.89,0.47089467]
[1748562642922,0.97368178,673.85,672.89,0.47089467]
[1748562643121,0.465,673.87,672.89,0.47089467]
[1748562643422,0.465,673.87,671.91,0.5650736]
[1748562643423,0.97199866,673.86,672.88,0.47089467]
[1748562643625,0.97199866,673.85,672.78,0.47089467]
[1748562643823,0.465,673.87,672.78,0.47089467]
[1748562644028,0.97200673,673.86,672.78,0.47089467]
[1748562644228,0.97200673,673.85,672.75,0.47089467]
[1748562644427,0.97200673,673.84,672.76,0.29728283]
[1748562644622,0.97277106,673.83,672.76,0.29728283]
[1748562644825,0.97242779,673.82,672.79,0.47089467]
[1748562645019,0.97243048,673.81,672.8,0.29726516]
[1748562645225,0.97244385,673.8,672.8,0.29726516]
[1748562645422,0.44856822,673.93,672.8,0.29726516]
[1748562646824,0.449,673.92,672.8,0.29726516]
[1748562647019,0.97244526,673.91,672.8,0.29726516]
[1748562647225,0.9724408,673.9,672.8,0.29726516]
[1748562647426,0.449,673.92,672.8,0.29726516]
[1748562647728,0.97245068,673.91,672.8,0.29726516]
[1748562647927,0.97245068,673.9,672.8,0.29726516]
[1748562648228,0.97245068,673.89,672.8,0.29726516]
[1748562648425,0.97245068,673.88,672.8,0.29726516]
[1748562648625,0.449,673.92,672.8,0.29726516]
[1748562648626,0.97109405,673.87,672.8,0.29726516]
[1748562648827,0.97085132,673.86,672.8,0.29726516]
[1748562649023,0.97085132,673.85,672.8,0.29726516]
[1748562649329,0.97085084,673.84,672.8,0.29726516]
[1748562649529,0.97085084,673.83,672.8,0.29726516]
[1748562649723,0.97085084,673.82,672.8,0.29726516]
[1748562649924,0.449,673.92,672.8,0.76815983]
[1748562650129,0.97073755,673.91,672.9,0.47089467]
[1748562650328,0.97069028,673.9,672.91,0.29721656]
[1748562650529,0.97066947,673.89,672.91,0.29721656]
[1748562650729,0.449,673.92,672.91,0.76811123]
[1748562651224,0.449,673.92,672.95,0.47089467]
[1748562651427,0.449,673.92,672.94,0.47089467]
[1748562651625,0.449,673.92,672.93,0.47089467]
[1748562652528,0.449,673.92,672.91,0.29721656]
[1748562652725,0.449,673.92,672.91,0.76811123]
[1748562653030,0.449,673.92,672.95,0.47089467]
[1748562653324,0.449,673.92,672.93,0.47089467]
[1748562653529,0.449,673.92,672.94,0.47089467]
[1748562654121,0.449,673.92,672.97,0.47089467]
[1748562654325,0.449,673.92,672.98,0.47089467]
[1748562654626,0.449,673.92,672.95,0.47089467]
[1748562655023,0.449,673.92,672.96,0.47089467]
[1748562655526,0.449,673.92,672.91,0.29721656]
[1748562665131,0.449,673.92,672.98,0.47089467]
[1748562665333,0.449,673.92,673.0,0.29717682]
[1748562665534,0.449,673.92,673.02,0.47089467]
[1748562665834,0.449,673.92,673.03,0.29716357]
[1748562666035,0.449,673.92,673.06,0.47089467]
[1748562666227,0.449,673.92,673.09,0.47089467]
[1748562666432,0.449,673.92,673.1,0.29713266]
[1748562667834,0.44856822,673.93,673.1,0.29713266]
[1748562668029,0.44856822,673.93,673.16,0.47089467]
[1748562668229,0.44856822,673.93,673.17,0.29710177]
[1748562684547,0.44856822,673.93,673.19,0.47089467]
[1748562685350,0.44856822,673.93,673.22,0.47089467]
[1748562685851,0.44856822,673.93,673.23,0.47089467]
[1748562686052,0.44856822,673.93,673.22,0.47089467]
[1748562686453,0.44856822,673.93,673.26,0.47089467]
[1748562687353,0.44856822,673.93,673.31,0.47089467]
[1748562687951,0.44856822,673.93,673.32,0.47089467]
[1748562688152,0.44856822,673.93,673.39,0.47089467]
[1748562688454,0.44856822,673.93,673.41,0.47089467]
[1748562689353,0.44856822,673.93,673.43,0.47089467]
[1748562690553,0.44856822,673.93,673.45,0.47089467]
[1748562690949,0.44856822,673.93,673.51,0.47089467]
[1748562691849,0.44856822,673.93,673.5,0.47089467]
[1748562692255,0.44856822,673.93,673.59,0.47089467]
[1748562692456,0.44856822,673.93,673.57,0.47089467]
[1748562692652,0.44856822,673.93,673.31,0.47089467]
[1748562692854,0.44856822,673.93,673.27,0.47089467]
[1748562693055,0.44856822,673.93,673.28,0.29705323]
[1748562704360,0.44856822,673.93,673.37,0.47089467]
[1748562704562,0.44856822,673.93,673.4,0.47089467]
[1748562705261,0.44856822,673.93,673.41,0.47089467]
[1748562705458,0.44856822,673.93,673.42,0.47089467]
[1748562705861,0.44856822,673.93,673.41,0.47089467]
[1748562706557,0.44856822,673.93,673.42,0.47089467]
[1748562707458,0.44856822,673.93,673.35,0.47089467]
[1748562707655,0.44856822,673.93,673.39,0.47089467]
[1748562708059,0.44856822,673.93,673.42,0.47089467]
[1748562708360,0.44856822,673.93,673.47,0.47089467]
[1748562708562,0.44856822,673.93,673.48,0.47089467]
[1748562709063,0.44856822,673.93,673.4,0.47089467]
[1748562709258,0.44856822,673.93,673.42,0.47089467]
[1748562709464,0.44856822,673.93,673.44,0.47089467]
[1748562709659,0.44856822,673.93,673.45,0.47089467]
[1748562709859,0.44856822,673.93,673.44,0.47089467]
[1748562710061,0.44856822,673.93,673.42,0.47089467]
[1748562710261,0.44856822,673.93,673.57,0.47089467]
[1748562710457,0.44856822,673.93,673.58,0.47089467]
[1748562710763,0.44856822,673.93,673.57,0.47089467]
[1748562711166,0.44856822,673.93,673.58,0.47089467]
[1748562711465,0.44856822,673.93,673.28,0.29705323]
[1748562711466,0.44856822,673.93,673.55,0.47089467]
[1748562711764,0.44856822,673.93,673.56,0.47089467]
[1748562712359,0.44856822,673.93,673.28,0.29705323]
[1748562712360,0.44856822,673.93,673.53,0.47089467]
[1748562712566,0.44856822,673.93,673.28,0.29705323]
[1748562712567,0.44856822,673.93,673.49,0.47089467]
[1748562712766,0.44856822,673.93,673.48,0.47089467]
[1748562713260,0.44856822,673.93,673.46,0.47089467]
[1748562713766,0.377,674.16,673.46,0.47089467]
[1748562713966,0.377,674.16,673.44,0.47089467]
[1748562714164,0.377,674.16,673.45,0.29697824]
[1748562717667,1.41968054,674.71,673.45,0.29697824]
[1748562717873,1.41968054,674.7,673.45,0.29697824]
[1748562718174,1.41968054,674.69,673.45,0.29697824]
[1748562718372,1.41968054,674.68,673.45,0.29697824]
[1748562718572,0.25816119,674.91,673.45,0.29697824]
[1748562718872,1.26679302,674.9,673.45,0.29697824]
[1748562719066,1.26675903,674.89,673.45,0.29697824]
[1748562719271,1.71585358,674.88,673.45,0.29697824]
[1748562719467,1.71585797,674.87,673.45,0.29697824]
[1748562719672,1.71586236,674.86,673.45,0.29697824]
[1748562719872,1.71586675,674.85,673.45,0.29697824]
[1748562720170,1.71580237,674.84,673.45,0.29697824]
[1748562720368,1.26601539,674.83,673.45,0.29697824]
[1748562720669,2.19807569,674.82,673.45,0.29697824]
[1748562720875,1.71508066,674.81,673.45,0.29697824]
[1748562721174,1.41870094,674.8,673.45,0.29697824]
[1748562721374,1.41870094,674.79,673.45,0.29697824]
[1748562721575,1.41870094,674.78,673.45,0.29697824]
[1748562721875,1.41870094,674.77,673.45,0.29697824]
[1748562722075,1.41870094,674.76,673.45,0.29697824]
[1748562722269,1.41870094,674.75,673.45,0.29697824]
[1748562722475,0.29637972,674.81,673.45,0.29697824]
[1748562722476,1.41800707,674.74,673.45,0.29697824]
[1748562722674,1.41800707,674.73,673.45,0.29697824]
[1748562722975,1.41800707,674.72,673.45,0.29697824]
[1748562723176,1.41800707,674.71,673.45,0.29697824]
[1748562723372,1.41800707,674.7,673.45,0.29697824]
[1748562723571,0.29637972,674.81,673.45,0.29697824]
[1748562723572,1.41800707,674.69,673.45,0.29697824]
[1748562723771,1.41802735,674.68,673.45,0.29697824]
[1748562723971,1.41802735,674.67,673.45,0.29697824]
[1748562724174,0.29637972,674.81,673.45,0.29697824]
[1748562724381,1.41870705,674.8,673.45,0.29697824]
[1748562724672,1.41865678,674.79,673.45,0.29697824]
[1748562724877,0.29637972,674.81,673.45,0.29697824]
[1748562725079,1.41865664,674.8,673.45,0.29697824]
[1748562725278,1.41867046,674.79,673.45,0.29697824]
[1748562725472,1.41867046,674.78,673.45,0.29697824]
[1748562725778,1.41867046,674.77,673.45,0.29697824]
[1748562726078,0.29637972,674.81,673.45,0.29697824]
[1748562726278,0.97000802,674.8,673.45,0.29697824]
[1748562726476,0.29637972,674.81,673.45,0.29697824]
[1748562726675,1.41885679,674.8,673.45,0.29697824]
[1748562726879,1.41885679,674.79,673.45,0.29697824]
[1748562727075,1.41885679,674.78,673.45,0.29697824]
[1748562727279,1.41885679,674.77,673.45,0.29697824]
[1748562727582,1.41872396,674.76,673.45,0.29697824]
[1748562727774,0.96984045,674.75,673.45,0.29697824]
[1748562727973,0.44888743,674.74,673.45,0.29697824]
[1748562728176,1.4188201,674.73,673.45,0.29697824]
[1748562728379,1.41882057,674.72,673.45,0.29697824]
[1748562728574,1.41882057,674.71,673.45,0.29697824]
[1748562728778,1.41882057,674.7,673.45,0.29697824]
[1748562729074,1.41882057,674.69,673.45,0.29697824]
[1748562729281,1.41882057,674.68,673.45,0.29697824]
[1748562729480,1.41882057,674.67,673.45,0.29697824]
[1748562729681,1.41882057,674.66,673.45,0.29697824]
[1748562729877,0.96993388,674.65,673.45,0.29697824]
[1748562730074,0.96966569,674.64,673.45,0.29697824]
[1748562730276,0.96966569,674.63,673.45,0.29697824]
[1748562730580,0.29637972,674.81,673.45,0.29697824]
[1748562730581,0.44885971,674.77,673.45,0.29697824]
[1748562730775,0.96968367,674.76,673.45,0.29697824]
[1748562730979,0.29637972,674.81,673.45,0.29697824]
[1748562731180,1.41857398,674.8,673.45,0.29697824]
[1748562731378,0.29637972,674.81,673.45,0.29697824]
[1748562731777,0.96976676,674.8,673.45,0.29697824]
[1748562731977,0.96980822,674.79,673.45,0.29697824]
[1748562732177,0.29637972,674.81,673.45,0.29697824]
[1748562732376,0.9698038,674.8,673.45,0.29697824]
[1748562732576,0.4489168,674.79,673.45,0.29697824]
[1748562732782,1.41872649,674.78,673.45,0.29697824]
[1748562732975,0.44892189,674.77,673.45,0.29697824]
[1748562733181,0.29637972,674.81,673.45,0.29697824]
[1748562733182,1.41844684,674.76,673.45,0.29697824]
[1748562733481,1.41826111,674.75,673.45,0.29697824]
[1748562733681,1.41826098,674.74,673.45,0.29697824]
[1748562733977,0.96939677,674.73,673.45,0.29697824]
[1748562734180,0.96939677,674.72,673.45,0.29697824]
[1748562734381,0.96932996,674.71,673.45,0.29697824]
[1748562734579,0.96971504,674.7,673.45,0.29697824]
[1748562734782,0.29637972,674.81,673.45,0.29697824]
[1748562734783,0.96971504,674.69,673.45,0.29697824]
[1748562734983,0.96971504,674.68,673.45,0.29697824]
[1748562735184,0.29637972,674.81,673.45,0.29697824]
[1748562735383,1.41844213,674.8,673.45,0.29697824]
[1748562735583,1.41844213,674.79,673.45,0.29697824]
[1748562735785,0.96964497,674.78,673.45,0.29697824]
[1748562736087,1.4184413,674.77,673.45,0.29697824]
[1748562736284,1.41833957,674.76,673.45,0.29697824]
[1748562736585,0.457,674.77,673.45,0.29697824]
[1748562736885,1.41831943,674.76,673.45,0.29697824]
[1748562737086,1.41831943,674.75,673.45,0.29697824]
[1748562737284,1.41831379,674.74,673.45,0.29697824]
[1748562737484,0.96955067,674.73,673.45,0.29697824]
[1748562737684,0.96955067,674.72,673.45,0.29697824]
[1748562737979,0.96955067,674.71,673.45,0.29697824]
[1748562738179,0.457,674.77,673.45,0.29697824]
[1748562738379,1.41837536,674.76,673.45,0.29697824]
[1748562738580,1.41837536,674.75,673.45,0.76787291]
[1748562738781,1.41837759,674.74,673.45,0.76787291]
[1748562738983,0.96955895,674.73,673.5,0.47089467]
[1748562739180,0.96955895,674.72,673.53,0.47089467]
[1748562739381,0.457,674.77,673.45,0.29697824]
[1748562739382,1.41837561,674.71,673.45,0.29697824]
[1748562739586,1.41829912,674.7,673.45,0.29697824]
[1748562739786,0.9695041,674.69,673.45,0.29697824]
[1748562739983,0.9695041,674.68,673.45,0.29697824]
[1748562740182,0.457,674.77,673.45,0.29697824]
[1748562740386,1.41840405,674.76,673.45,0.29697824]
[1748562740586,0.457,674.77,673.45,0.76787291]
[1748562740587,1.41834024,674.75,673.45,0.76787291]
[1748562740790,1.41838995,674.74,673.45,0.76787291]
[1748562740986,1.41838996,674.73,673.45,0.76787291]
[1748562741183,0.457,674.77,673.49,0.47089467]
[1748562741184,0.9696214,674.72,673.49,0.47089467]
[1748562741387,0.9696214,674.71,673.51,0.47089467]
[1748562741589,0.9696214,674.7,673.51,0.47089467]
[1748562741789,0.9696214,674.69,673.51,0.47089467]
[1748562741988,0.9696214,674.68,673.52,0.47089467]
[1748562742189,0.96961151,674.67,673.52,0.47089467]
[1748562742384,0.96961151,674.67,673.45,0.29697824]
[1748562742385,0.9696115,674.66,673.55,0.47089467]
[1748562742588,0.44878669,674.73,673.55,0.47089467]
[1748562742784,0.457,674.77,673.55,0.47089467]
[1748562742991,0.96958969,674.76,673.55,0.47089467]
[1748562743192,0.457,674.77,673.58,0.47089467]
[1748562743490,0.457,674.77,673.6,0.47089467]
[1748562743685,1.41839056,674.76,673.48,0.47089467]
[1748562743887,0.457,674.77,673.48,0.47089467]
[1748562744286,0.44879063,674.76,673.49,0.47089467]
[1748562744487,0.457,674.77,673.49,0.47089467]
[1748562744685,0.96960408,674.76,673.5,0.29695619]
[1748562744891,1.41841892,674.75,673.5,0.29695619]
[1748562745091,1.41837653,674.74,673.5,0.76785086]
[1748562745286,1.41844442,674.73,673.5,0.76785086]
[1748562745485,0.96962505,674.72,673.5,0.29695619]
[1748562745686,0.96965787,674.71,673.5,0.29695619]
[1748562745892,0.96965787,674.7,673.5,0.29695619]
[1748562746191,0.96965787,674.69,673.5,0.29695619]
[1748562746392,0.96965787,674.68,673.5,0.29695619]
[1748562746687,0.457,674.77,673.5,0.29695619]
[1748562746892,1.41874431,674.76,673.5,0.29695619]
[1748562747191,1.41873257,674.75,673.5,0.29695619]
[1748562747394,0.457,674.77,673.5,0.29695619]
[1748562747395,1.41873373,674.74,673.5,0.29695619]
[1748562747590,1.41873373,674.73,673.5,0.29695619]
[1748562747790,1.41873373,674.72,673.5,0.29695619]
[1748562747990,0.96985529,674.71,673.5,0.29695619]
[1748562748191,0.96985529,674.7,673.5,0.29695619]
[1748562748391,0.96985529,674.69,673.5,0.29695619]
[1748562748589,0.457,674.77,673.5,0.29695619]
[1748562748792,1.4189352,674.76,673.5,0.29695619]
[1748562748993,0.44896984,674.75,673.5,0.29695619]
[1748562749189,0.457,674.77,673.5,0.76785086]
[1748562749190,1.41913,674.74,673.5,0.76785086]
[1748562749390,1.41913,674.73,673.5,0.76785086]
[1748562749593,1.41925948,674.72,673.5,0.76785086]
[1748562749789,1.41925948,674.71,673.51,0.47089467]
[1748562749994,0.97024857,674.7,673.5,0.76785086]
[1748562750191,0.97024857,674.69,673.51,0.47089467]
[1748562750390,0.97032609,674.68,673.51,0.47089467]
[1748562750594,0.44902848,674.73,673.5,0.29695619]
[1748562750791,0.4490271,674.72,673.5,0.29695619]
[1748562750994,0.457,674.77,673.5,0.29695619]
[1748562751294,0.97010081,674.76,673.5,0.29695619]
[1748562751496,0.97008599,674.75,673.5,0.29695619]
[1748562751695,0.457,674.77,673.5,0.29695619]
[1748562752095,0.44891902,674.76,673.5,0.29695619]
[1748562752294,0.457,674.77,673.5,0.29695619]
[1748562752492,0.97006652,674.76,673.5,0.29695619]
[1748562752797,0.457,674.77,673.5,0.29695619]
[1748562753193,0.96991556,674.76,673.5,0.29695619]
[1748562753399,1.4188209,674.75,673.5,0.29695619]
[1748562753593,1.41882647,674.74,673.5,0.29695619]
[1748562753797,0.44890736,674.73,673.5,0.29695619]
[1748562753993,0.44890665,674.72,673.5,0.29695619]
[1748562754199,0.457,674.77,673.5,0.29695619]
[1748562754393,0.96996486,674.76,673.5,0.29695619]
[1748562754597,1.41890977,674.75,673.5,0.29695619]
[1748562754795,1.41890977,674.74,673.5,0.29695619]
[1748562755100,0.96997822,674.73,673.53,0.47089467]
[1748562755301,0.457,674.77,673.53,0.47089467]
[1748562755302,0.97007843,674.72,673.58,0.47089467]
[1748562755498,0.97007843,674.71,673.57,0.47089467]
[1748562755694,0.97007843,674.7,673.57,0.47089467]
[1748562755897,0.97007843,674.7,673.53,0.29694297]
[1748562755898,0.44904732,674.75,673.58,0.47089467]
[1748562756094,1.41932423,674.74,673.58,0.47089467]
[1748562756298,0.457,674.77,673.59,0.47089467]
[1748562756498,1.41935919,674.76,673.59,0.47089467]
[1748562756701,1.41935919,674.75,673.58,0.47089467]
[1748562756997,1.41935919,674.74,673.58,0.47089467]
[1748562757197,1.41935919,674.73,673.59,0.47089467]
[1748562757400,0.97029957,674.72,673.59,0.47089467]
[1748562757604,0.97035277,674.71,673.59,0.47089467]
[1748562757897,0.97126247,674.7,673.59,0.47089467]
[1748562758102,1.4210358,674.69,673.59,0.47089467]
[1748562758299,1.4210358,674.68,673.59,0.47089467]
[1748562758602,1.4210358,674.67,673.53,0.29694297]
[1748562758801,0.44956217,674.66,673.53,0.76783764]
[1748562759004,1.42299961,674.65,673.53,0.29694297]
[1748562759199,1.42299961,674.64,673.53,0.29694297]
[1748562759401,1.42299132,674.63,673.53,0.29694297]
[1748562759605,1.42298547,674.62,673.53,0.29694297]
[1748562759800,1.42298547,674.61,673.53,0.29694297]
[1748562760004,0.45021096,674.6,673.53,0.29694297]
[1748562760205,0.97233574,674.59,673.53,0.29694297]
[1748562760406,1.42256194,674.58,673.53,0.29694297]
[1748562760598,1.42256194,674.57,673.53,0.29694297]
[1748562760803,1.42256645,674.56,673.53,0.29694297]
[1748562761004,1.42256645,674.55,673.53,0.29694297]
[1748562761200,0.97234141,674.54,673.53,0.29694297]
[1748562761402,0.97234542,674.53,673.53,0.29694297]
[1748562761605,0.45023081,674.75,673.53,0.29694297]
[1748562761800,0.45023081,674.74,673.53,0.29694297]
[1748562762005,1.42257874,674.73,673.53,0.29694297]
[1748562762206,1.42257874,674.72,673.53,0.29694297]
[1748562762403,1.42257874,674.71,673.53,0.29694297]
[1748562762705,1.42257874,674.7,673.53,0.29694297]
[1748562762905,0.457,674.77,673.53,0.29694297]
[1748562762906,1.42257874,674.69,673.53,0.29694297]
[1748562763207,0.457,674.77,673.53,0.29694297]
[1748562763407,1.42256908,674.76,673.53,0.29694297]
[1748562763608,1.42256908,674.75,673.53,0.76783764]
[1748562763805,0.457,674.77,673.53,0.76783764]
[1748562764002,0.97235046,674.76,673.53,0.76783764]
[1748562764201,1.42258379,674.75,673.53,0.76783764]
[1748562764407,1.42258379,674.74,673.53,0.29694297]
[1748562764703,1.42242293,674.73,673.53,0.29694297]
[1748562764908,1.42243488,674.72,673.53,0.29694297]
[1748562765107,1.42237233,674.71,673.53,0.29694297]
[1748562765407,1.42237233,674.7,673.53,0.29694297]
[1748562765607,0.457,674.77,673.53,0.29694297]
[1748562765807,1.71875481,674.76,673.53,0.29694297]
[1748562766008,1.7187592,674.75,673.53,0.29694297]
[1748562766308,0.29640607,674.75,673.53,0.29694297]
[1748562766506,0.45013525,674.74,673.53,0.29694297]
[1748562766708,1.4222937,674.73,673.53,0.29694297]
[1748562766905,1.42219721,674.72,673.53,0.29694297]
[1748562767105,0.4501324,674.71,673.53,0.29694297]
[1748562767309,0.29640607,674.75,673.53,0.29694297]
[1748562767609,0.97193871,674.74,673.53,0.29694297]
[1748562767809,0.97229152,674.73,673.53,0.29694297]
[1748562768004,0.97229776,674.72,673.53,0.29694297]
[1748562768305,0.29640607,674.75,673.53,0.29694297]
[1748562768706,0.45020925,674.74,673.53,0.29694297]
[1748562768911,0.74662411,674.73,673.53,0.29694297]
[1748562769112,0.29641925,674.72,673.53,0.29694297]
[1748562770210,1.81052005,674.71,673.53,0.29694297]
[1748562770406,1.71894809,674.7,673.53,0.29694297]
[1748562770606,1.71895248,674.69,673.53,0.29694297]
[1748562770811,1.42110567,674.68,673.53,0.29694297]
[1748562771007,1.42110815,674.67,673.53,0.29694297]
[1748562771310,1.42111365,674.66,673.53,0.29694297]
[1748562771506,1.42111365,674.65,673.53,0.29694297]
[1748562771705,0.29643243,674.69,673.53,0.29694297]
[1748562771911,1.42091804,674.68,673.53,0.29694297]
[1748562772111,1.42091804,674.67,673.53,0.29694297]
[1748562772313,1.42091804,674.66,673.53,0.29694297]
[1748562772508,0.29643243,674.69,673.53,0.29694297]
[1748562772712,0.45008883,674.68,673.53,0.29694297]
[1748562773008,0.97084859,674.67,673.53,0.29694297]
[1748562773213,0.29643243,674.69,673.53,0.29694297]
[1748562773405,1.42093806,674.68,673.53,0.29694297]
[1748562773606,0.4500894,674.67,673.53,0.29694297]
[1748562773810,1.42165274,674.66,673.53,0.29694297]
[1748562774004,1.42165274,674.65,673.53,0.29694297]
[1748562774210,0.45005779,674.64,673.53,0.29694297]
[1748562774410,0.29643243,674.69,673.53,0.29694297]
[1748562775011,1.42174285,674.68,673.53,0.29694297]
[1748562775209,0.97165234,674.68,673.53,0.29694297]
[1748562775609,1.42176453,674.67,673.53,0.29694297]
[1748562775812,0.97165234,674.68,673.53,0.29694297]
[1748562777012,1.42180346,674.67,673.53,0.29694297]
[1748562777213,0.97167068,674.67,673.53,0.29694297]
[1748562777411,0.97165234,674.68,673.53,0.29694297]
[1748562777615,0.97169872,674.67,673.53,0.29694297]
[1748562777914,0.97165234,674.68,673.53,0.29694297]
[1748562778110,0.97167301,674.67,673.53,0.29694297]
[1748562778317,0.97165234,674.68,673.53,0.29694297]
[1748562779317,0.97173164,674.67,673.53,0.29694297]
[1748562779618,0.97165234,674.68,673.53,0.29694297]
[1748562781110,1.42198654,674.67,673.53,0.29694297]
[1748562781312,0.97223876,674.66,673.6,0.47089467]
[1748562781617,0.97218729,674.65,673.79,0.47089467]
[1748562781817,0.97165234,674.68,673.73,0.47089467]
[1748562782116,0.97165234,674.68,673.82,0.47089467]
[1748562782313,0.97165234,674.68,673.86,0.47089467]
[1748562782518,0.97165234,674.68,673.87,0.47089467]
[1748562782713,0.97165234,674.68,673.86,0.47089467]
[1748562783318,0.97223463,674.67,673.74,0.76774508]
[1748562783519,0.97223463,674.67,673.77,0.47089467]
[1748562783818,0.97165234,674.68,673.76,0.47089467]
[1748562784119,0.97165234,674.68,673.74,0.76774508]
[1748562784323,0.97282372,674.67,673.74,0.29685041]
[1748562784517,0.97282372,674.66,673.74,0.29685041]
[1748562784715,0.97282332,674.65,673.74,0.29685041]
[1748562785017,0.97165234,674.68,673.74,0.29685041]
[1748562785215,0.97280265,674.67,673.74,0.29685041]
[1748562785516,0.97432472,674.66,673.74,0.29685041]
[1748562785722,0.97165234,674.68,673.74,0.29685041]
[1748562787625,0.325,674.67,673.74,0.29685041]
[1748562808639,0.97165234,674.68,673.74,0.29685041]
[1748562811944,0.5,674.67,673.74,0.29685041]
[1748562820448,0.5,674.67,673.75,0.47089467]
[1748562820648,0.5,674.67,673.77,0.29683719]
[1748562821347,0.5,674.67,673.8,0.47089467]
[1748562821547,0.5,674.67,673.82,0.29681517]
[1748562821749,0.5,674.67,673.84,0.47089467]
[1748562821948,0.5,674.67,673.86,0.29679755]
[1748562822450,0.5,674.67,673.86,0.76769222]
[1748562822644,0.5,674.67,673.86,0.29679755]
[1748562827854,0.5,674.67,673.86,0.76769222]
[1748562828249,0.5,674.67,673.86,0.29679755]
[1748562829855,0.97165234,674.68,673.86,0.29679755]